[Event "Asian Zonal-ch 3.5 Women 2019"]
[Site "Zi Bo"]
[Date "2019.09.09"]
[Round "8.5"]
[White "Li, Yunshan"]
[Black "Hu, Yu A."]
[Result "1/2-1/2"]
[ECO "D36"]
[WhiteElo "2261"]
[BlackElo "2105"]
[Annotator "ChessBase"]
[PlyCount "74"]
[EventDate "2019.09.05"]
[EventType "swiss"]
[EventCountry "CHN"]
[SourceTitle "playchess.com"]
[Source "ChessBase"]
[SourceQuality "1"]
[TimeControl "5400+30"]

1. d4 {[%emt 0:00:00]} Nf6 {[%emt 0:00:36]} 2. c4 {[%emt 0:00:00]} e6 {[%emt 0:00:14]} 3. Nc3 {[%emt 0:00:00]} d5 {[%emt 0:01:29]} 4. cxd5 {[%emt 0:00:15]} exd5 {[%emt 0:00:37]} 5. Bg5 {[%emt 0:00:06]} Be7 {[%emt 0:00:38]} 6. e3 {[%emt 0:00:17]} c6 {[%emt 0:00:36]} 7. Bd3 {[%emt 0:00:26]} Nbd7 {[%emt 0:00:18]} 8. Qc2 {[%emt 0:00:41]} Nh5 {[%emt 0:00:25]} 9. Bxe7 {[%emt 0:00:25]} Qxe7 {[%emt 0:00:09]} 10. Nge2 {[%emt 0:01:21]} g6 {[%emt 0:01:25]} 11. O-O {[%emt 0:01:19]} O-O {[%emt 0:00:17]} 12. Rab1 {[%emt 0:01:09]} Nb6 {[%emt 0:08:47]} 13. b4 {[%emt 0:06:04]} Be6 {[%emt 0:06:54]} 14. Na4 {[%emt 0:08:44]} Nxa4 {[%emt 0:05:14]} 15. Qxa4 {[%emt 0:00:16]} a6 {[%emt 0:00:19]} 16. Qb3 {[%emt 0:06:46]} Ng7 {[%emt 0:01:54]} 17. a4 {[%emt 0:02:26]} Bf5 {[%emt 0:05:03]} 18. Rfc1 {[%emt 0:03:52]} Rfc8 {[%emt 0:04:42]} 19. h3 {[%emt 0:14:42]} Bxd3 {[%emt 0:01:41]} 20. Qxd3 {[%emt 0:00:10]} Nf5 {[%emt 0:00:06]} 21. b5 {[%emt 0:03:55]} axb5 {[%emt 0:00:07]} 22. axb5 {[%emt 0:00:04]} Nd6 {[%emt 0:00:12]} 23. bxc6 {[%emt 0:03:27]} bxc6 {[%emt 0:00:17]} 24. Nf4 {[%emt 0:01:15]} Nc4 {[%emt 0:00:34]} 25. Ra1 {[%emt 0:06:46]} Rcb8 {[%emt 0:27:19]} 26. g3 {[%emt 0:01:41]} Rxa1 {[%emt 0:02:15]} 27. Rxa1 {[%emt 0:00:02]} Rb2 {[%emt 0:00:07]} 28. Re1 {[%emt 0:02:20]} Qb4 {[%emt 0:00:43]} 29. Rc1 {[%emt 0:04:34]} Qa4 {[%emt 0:09:40]} 30. e4 {[%emt 0:07:10]} Rd2 {[%emt 0:00:51]} 31. Qf3 {[%emt 0:00:56]} dxe4 {[%emt 0:01:20]} 32. Qxe4 {[%emt 0:00:37]} Rd1+ {[%emt 0:00:04]} 33. Rxd1 {[%emt 0:00:18]} Qxd1+ {[%emt 0:00:04]} 34. Kg2 {[%emt 0:00:23]} Nd2 {[%emt 0:00:32]} 35. Qd3 {[%emt 0:03:05]} Qe1 {[%emt 0:00:16]} 36. Qe2 {[%emt 0:01:27]} Qxe2 {[%emt 0:01:45]} 37. Nxe2 {[%emt 0:00:07]} Kf8 {[%emt 0:00:17]} 1/2-1/2

[Event "Asian Zonal-ch 3.5 Women 2019"]
[Site "Zi Bo"]
[Date "2019.09.09"]
[Round "8.7"]
[White "Zhang, Xiao"]
[Black "Zhang, Yuxuan"]
[Result "1-0"]
[ECO "E62"]
[WhiteElo "2073"]
[BlackElo "1979"]
[Annotator "NA"]
[PlyCount "45"]
[EventDate "2019.09.05"]
[EventType "swiss"]
[EventCountry "CHN"]
[SourceTitle "playchess.com"]
[Source "ChessBase"]
[SourceQuality "1"]
[TimeControl "5400+30"]

1. d4 {[%emt 0:00:00]} Nf6 {[%emt 0:00:00]} 2. c4 {[%emt 0:00:00]} g6 {[%emt 0:00:00]} 3. Nf3 {[%emt 0:00:00]} Bg7 {[%emt 0:00:00]} 4. g3 {[%emt 0:00:04]} O-O {[%emt 0:00:00]} 5. Bg2 {[%emt 0:00:03]} d6 {[%emt 0:00:02]} 6. O-O {[%emt 0:00:07]} Nc6 {[%emt 0:00:04]} 7. Nc3 {[%emt 0:00:04]} Bf5 {[%emt 0:00:09]} 8. Ne1 {[%emt 0:01:00]} Qd7 {[%emt 0:01:54]} 9. e4 {[%emt 0:01:29]} Bh3 {[%emt 0:00:07]} 10. Nf3 {[%emt 0:02:22]} Bxg2 {[%emt 0:04:03]} 11. Kxg2 {[%emt 0:00:02]} e5 {[%emt 0:00:27]} 12. d5 {[%emt 0:04:08]} Ne7 {[%emt 0:00:15]} 13. a4 {[%emt 0:04:08]} a5 {[%emt 0:00:58]} 14. c5 {[%emt 0:01:41]} Ne8 {[%emt 0:00:31]} 15. Qb3 {[%emt 0:05:53]} dxc5 {[%emt 0:06:06]} 16. Qxb7 {[%emt 0:00:16]} Nd6 {[%emt 0:00:05]} 17. Qb3 {[%emt 0:00:14]} Rfb8 {[%emt 0:00:22]} 18. Qc2 {[%emt 0:05:28]} f5 {[%emt 0:02:24]} 19. Re1 {[%emt 0:04:44]} Nxe4 {[%emt 0:06:19]} 20. Nxe4 {[%emt 0:00:27]} fxe4 {[%emt 0:00:05]} 21. Ng5 {[%emt 0:17:13]} Qxd5 {[%emt 0:13:36]} 22. Rd1 {[%emt 0:00:10]} Qb3 {[%emt 0:00:57]} 23. Rd8+ {[%emt 0:00:04]} 1-0

[Event "Asian Zonal-ch 3.5 Women 2019"]
[Site "Zi Bo"]
[Date "2019.09.09"]
[Round "8.8"]
[White "Zhou, Zirun"]
[Black "Zhang, Lanlin"]
[Result "1/2-1/2"]
[ECO "D31"]
[WhiteElo "2155"]
[BlackElo "2203"]
[Annotator "ChessBase"]
[PlyCount "135"]
[EventDate "2019.09.05"]
[EventType "swiss"]
[EventCountry "CHN"]
[SourceTitle "playchess.com"]
[Source "ChessBase"]
[SourceQuality "1"]
[TimeControl "5400+30"]

1. d4 {[%emt 0:00:00]} d5 {[%emt 0:00:39]} 2. c4 {[%emt 0:00:00]} e6 {[%emt 0:00:03]} 3. Nc3 {[%emt 0:00:00]} a6 {[%emt 0:00:03]} 4. cxd5 {[%emt 0:01:47]} exd5 {[%emt 0:02:34]} 5. Nf3 {[%emt 0:00:18]} h6 {[%emt 0:00:04]} 6. Bf4 {[%emt 0:08:06]} Nf6 {[%emt 0:00:22]} 7. e3 {[%emt 0:00:41]} Bd6 {[%emt 0:00:18]} 8. Bxd6 {[%emt 0:01:54]} Qxd6 {[%emt 0:00:08]} 9. Bd3 {[%emt 0:01:34]} O-O {[%emt 0:01:33]} 10. O-O {[%emt 0:00:58]} b6 {[%emt 0:01:17]} 11. Qc2 {[%emt 0:09:55]} Bb7 {[%emt 0:03:01]} 12. e4 {[%emt 0:01:18]} dxe4 {[%emt 0:05:52]} 13. Nxe4 {[%emt 0:00:07]} Bxe4 {[%emt 0:09:34]} 14. Bxe4 {[%emt 0:00:08]} Nxe4 {[%emt 0:13:07]} 15. Qxe4 {[%emt 0:00:07]} Nd7 {[%emt 0:00:04]} 16. Rac1 {[%emt 0:00:20]} Nf6 {[%emt 0:00:17]} 17. Qe5 {[%emt 0:00:35]} Rac8 {[%emt 0:01:00]} 18. Rc2 {[%emt 0:06:00]} Rfe8 {[%emt 0:02:56]} 19. Qxd6 {[%emt 0:00:17]} cxd6 {[%emt 0:00:08]} 20. Rfc1 {[%emt 0:00:05]} Rxc2 {[%emt 0:00:06]} 21. Rxc2 {[%emt 0:00:03]} Nd5 {[%emt 0:00:03]} 22. Kf1 {[%emt 0:02:38]} Kf8 {[%emt 0:00:09]} 23. a3 {[%emt 0:01:45]} Rb8 {[%emt 0:01:16]} 24. g3 {[%emt 0:01:27]} Ke7 {[%emt 0:00:08]} 25. Nd2 {[%emt 0:04:56]} Kd7 {[%emt 0:01:10]} 26. Ke2 {[%emt 0:05:59]} b5 {[%emt 0:00:09]} 27. Kd3 {[%emt 0:02:38]} a5 {[%emt 0:01:05]} 28. b3 {[%emt 0:10:03]} Re8 {[%emt 0:00:40]} 29. Rc1 {[%emt 0:01:06]} f5 {[%emt 0:00:16]} 30. Nf1 {[%emt 0:09:33]} f4 {[%emt 0:00:45]} 31. Ra1 {[%emt 0:02:00]} g5 {[%emt 0:04:52]} 32. Kd2 {[%emt 0:04:51]} Nf6 {[%emt 0:07:08]} 33. f3 {[%emt 0:00:55]} Nd5 {[%emt 0:03:52]} 34. Re1 {[%emt 0:00:31]} Rc8 {[%emt 0:00:04]} 35. Rc1 {[%emt 0:00:07]} Rh8 {[%emt 0:00:02]} 36. Rd1 {[%emt 0:05:37]} Rb8 {[%emt 0:05:18]} 37. Ra1 {[%emt 0:00:22]} a4 {[%emt 0:00:21]} 38. Rb1 {[%emt 0:00:14]} Ra8 {[%emt 0:03:46]} 39. bxa4 {[%emt 0:00:25]} Rxa4 {[%emt 0:00:04]} 40. Rxb5 {[%emt 0:00:06]} Kc6 {[%emt 0:00:31]} 41. Rb3 {[%emt 0:02:04]} Rxd4+ {[%emt 0:00:09]} 42. Rd3 {[%emt 0:00:05]} Ra4 {[%emt 0:00:04]} 43. Ke2 {[%emt 0:01:06]} h5 {[%emt 0:00:52]} 44. Nd2 {[%emt 0:01:08]} Nf6 {[%emt 0:04:18]} 45. Nb3 {[%emt 0:03:19]} d5 {[%emt 0:00:54]} 46. gxf4 {[%emt 0:01:46]} gxf4 {[%emt 0:00:35]} 47. Rd4 {[%emt 0:00:15]} Rxa3 {[%emt 0:02:05]} 48. Rxf4 {[%emt 0:00:06]} Rxb3 {[%emt 0:00:04]} 49. Rxf6+ {[%emt 0:00:06]} Kc5 {[%emt 0:00:01]} 50. Rf8 {[%emt 0:03:25]} Kd4 {[%emt 0:04:00]} 51. Rf4+ {[%emt 0:01:48]} Kc3 {[%emt 0:00:39]} 52. Ke3 {[%emt 0:00:58]} Rb8 {[%emt 0:02:44]} 53. Rh4 {[%emt 0:01:40]} Re8+ {[%emt 0:01:23]} 54. Kf2 {[%emt 0:00:05]} d4 {[%emt 0:01:22]} 55. Rxh5 {[%emt 0:00:06]} d3 {[%emt 0:00:03]} 56. Rc5+ {[%emt 0:01:03]} Kd4 {[%emt 0:00:49]} 57. Rc7 {[%emt 0:00:12]} d2 {[%emt 0:00:23]} 58. Rd7+ {[%emt 0:00:04]} Kc3 {[%emt 0:00:02]} 59. Rc7+ {[%emt 0:00:06]} Kb2 {[%emt 0:00:05]} 60. Rd7 {[%emt 0:00:03]} Kc1 {[%emt 0:00:04]} 61. Rc7+ {[%emt 0:00:05]} Kd1 {[%emt 0:00:07]} 62. h4 {[%emt 0:00:35]} Ra8 {[%emt 0:04:01]} 63. h5 {[%emt 0:00:19]} Ra6 {[%emt 0:01:01]} 64. Rc5 {[%emt 0:01:05]} Rh6 {[%emt 0:01:35]} 65. Kf1 {[%emt 0:00:06]} Rf6 {[%emt 0:00:17]} 66. Kf2 {[%emt 0:00:05]} Rh6 {[%emt 0:00:04]} 67. Kf1 {[%emt 0:00:06]} Rf6 {[%emt 0:01:48]} 68. Kf2 {[%emt 0:00:05]} 1/2-1/2

[Event "Asian Zonal-ch 3.5 Women 2019"]
[Site "Zi Bo"]
[Date "2019.09.09"]
[Round "8.9"]
[White "Ha, Yihan"]
[Black "Bai, Xue"]
[Result "1-0"]
[ECO "D36"]
[WhiteElo "1580"]
[BlackElo "2093"]
[Annotator "NA"]
[PlyCount "125"]
[EventDate "2019.09.05"]
[EventType "swiss"]
[EventCountry "CHN"]
[SourceTitle "playchess.com"]
[Source "ChessBase"]
[SourceQuality "1"]
[TimeControl "5400+30"]

1. d4 {[%emt 0:00:00]} Nf6 {[%emt 0:00:00]} 2. c4 {[%emt 0:00:00]} e6 {[%emt 0:00:00]} 3. Nc3 {[%emt 0:00:00]} d5 {[%emt 0:00:00]} 4. cxd5 {[%emt 0:00:06]} exd5 {[%emt 0:01:57]} 5. Bg5 {[%emt 0:00:10]} c6 {[%emt 0:00:10]} 6. e3 {[%emt 0:00:06]} Be7 {[%emt 0:00:04]} 7. Bd3 {[%emt 0:00:09]} O-O {[%emt 0:00:09]} 8. Qc2 {[%emt 0:00:31]} Nbd7 {[%emt 0:00:07]} 9. Nge2 {[%emt 0:01:03]} Re8 {[%emt 0:00:59]} 10. O-O {[%emt 0:00:27]} Nf8 {[%emt 0:00:20]} 11. Rab1 {[%emt 0:04:28]} Be6 {[%emt 0:04:13]} 12. b4 {[%emt 0:01:09]} b6 {[%emt 0:05:57]} 13. Rfc1 {[%emt 0:01:02]} N6d7 {[%emt 0:01:24]} 14. Bf4 {[%emt 0:01:15]} a5 {[%emt 0:01:11]} 15. bxa5 {[%emt 0:03:32]} Rxa5 {[%emt 0:00:06]} 16. Na4 {[%emt 0:04:20]} b5 {[%emt 0:03:31]} 17. Nac3 {[%emt 0:07:07]} Nb6 {[%emt 0:00:38]} 18. Nxb5 {[%emt 0:01:23]} cxb5 {[%emt 0:02:28]} 19. Bc7 {[%emt 0:00:13]} Qa8 {[%emt 0:00:07]} 20. Bxb6 {[%emt 0:00:37]} Rxa2 {[%emt 0:00:07]} 21. Qd1 {[%emt 0:02:57]} Ba3 {[%emt 0:17:15]} 22. Rc2 {[%emt 0:07:21]} Rxc2 {[%emt 0:00:08]} 23. Qxc2 {[%emt 0:00:16]} Rc8 {[%emt 0:02:29]} 24. Qd2 {[%emt 0:01:42]} Bd7 {[%emt 0:10:00]} 25. Qa5 {[%emt 0:10:17]} Qxa5 {[%emt 0:08:12]} 26. Bxa5 {[%emt 0:00:04]} Ra8 {[%emt 0:00:05]} 27. Be1 {[%emt 0:03:24]} Rb8 {[%emt 0:09:03]} 28. Nc3 {[%emt 0:00:39]} b4 {[%emt 0:01:20]} 29. Nxd5 {[%emt 0:01:16]} b3 {[%emt 0:00:12]} 30. Kf1 {[%emt 0:05:24]} Ne6 {[%emt 0:02:24]} 31. Ke2 {[%emt 0:03:51]} Bc6 {[%emt 0:03:16]} 32. Nc3 {[%emt 0:00:45]} Bxg2 {[%emt 0:01:49]} 33. Nb5 {[%emt 0:00:12]} Bf8 {[%emt 0:00:05]} 34. Rxb3 {[%emt 0:00:31]} Bd6 {[%emt 0:02:39]} 35. h4 {[%emt 0:03:01]} Bd5 {[%emt 0:01:43]} 36. Rb1 {[%emt 0:00:34]} Be7 {[%emt 0:00:46]} 37. f4 {[%emt 0:00:56]} g6 {[%emt 0:01:07]} 38. Nc3 {[%emt 0:01:28]} Rxb1 {[%emt 0:00:16]} 39. Bxb1 {[%emt 0:00:17]} Bb7 {[%emt 0:00:30]} 40. Be4 {[%emt 0:03:01]} Bxe4 {[%emt 0:02:42]} 41. Nxe4 {[%emt 0:00:04]} Ng7 {[%emt 0:00:06]} 42. Ng5 {[%emt 0:00:51]} h6 {[%emt 0:01:06]} 43. Nf3 {[%emt 0:00:11]} Kf8 {[%emt 0:00:06]} 44. e4 {[%emt 0:00:27]} Ke8 {[%emt 0:00:20]} 45. Ke3 {[%emt 0:00:46]} Ne6 {[%emt 0:00:46]} 46. f5 {[%emt 0:01:33]} Ng7 {[%emt 0:04:48]} 47. Kf4 {[%emt 0:01:33]} Nh5+ {[%emt 0:00:55]} 48. Ke3 {[%emt 0:00:59]} Ng7 {[%emt 0:00:16]} 49. fxg6 {[%emt 0:00:29]} fxg6 {[%emt 0:00:05]} 50. Bg3 {[%emt 0:00:36]} g5 {[%emt 0:00:39]} 51. hxg5 {[%emt 0:00:45]} hxg5 {[%emt 0:00:02]} 52. Ne5 {[%emt 0:00:44]} Bd6 {[%emt 0:01:57]} 53. Bh2 {[%emt 0:02:49]} Ne6 {[%emt 0:01:37]} 54. Ng4 {[%emt 0:01:18]} Ba3 {[%emt 0:00:34]} 55. d5 {[%emt 0:01:21]} Bc1+ {[%emt 0:01:07]} 56. Kd3 {[%emt 0:00:34]} Nc5+ {[%emt 0:00:53]} 57. Kd4 {[%emt 0:00:24]} Nd7 {[%emt 0:00:44]} 58. e5 {[%emt 0:00:29]} Ke7 {[%emt 0:00:36]} 59. Ke4 {[%emt 0:00:59]} Nb6 {[%emt 0:01:59]} 60. Bg1 {[%emt 0:00:37]} Nc4 {[%emt 0:01:03]} 61. Bc5+ {[%emt 0:00:51]} Kf7 {[%emt 0:03:32]} 62. e6+ {[%emt 0:00:45]} Kg7 {[%emt 0:00:07]} 63. e7 {[%emt 0:00:14]} 1-0

[Event "Asian Zonal-ch 3.5 Women 2019"]
[Site "Zi Bo"]
[Date "2019.09.09"]
[Round "8.10"]
[White "Cai Youyang"]
[Black "Yuan, Ye"]
[Result "1/2-1/2"]
[ECO "A84"]
[WhiteElo "1910"]
[BlackElo "2092"]
[Annotator "NA"]
[PlyCount "54"]
[EventDate "2019.09.05"]
[EventType "swiss"]
[EventCountry "CHN"]
[SourceTitle "playchess.com"]
[Source "ChessBase"]
[SourceQuality "1"]
[TimeControl "5400+30"]

1. d4 {[%emt 0:00:23]} d5 {[%emt 0:00:00]} 2. c4 {[%emt 0:00:04]} e6 {[%emt 0:00:00]} 3. Nf3 {[%emt 0:00:05]} c6 {[%emt 0:00:13]} 4. e3 {[%emt 0:00:04]} f5 {[%emt 0:00:39]} 5. Bd3 {[%emt 0:03:59]} Nf6 {[%emt 0:00:08]} 6. O-O {[%emt 0:01:07]} Bd6 {[%emt 0:00:06]} 7. Ne5 {[%emt 0:07:41]} O-O {[%emt 0:00:43]} 8. f4 {[%emt 0:00:08]} Ne4 {[%emt 0:02:58]} 9. Nd2 {[%emt 0:17:00]} b6 {[%emt 0:01:59]} 10. Ndf3 {[%emt 0:00:49]} Rf6 {[%emt 0:06:55]} 11. Bd2 {[%emt 0:01:12]} Nxd2 {[%emt 0:04:23]} 12. Qxd2 {[%emt 0:00:13]} Bb7 {[%emt 0:00:50]} 13. b4 {[%emt 0:03:05]} Nd7 {[%emt 0:04:15]} 14. Nxd7 {[%emt 0:01:30]} Qxd7 {[%emt 0:00:06]} 15. c5 {[%emt 0:00:15]} Bc7 {[%emt 0:00:28]} 16. a4 {[%emt 0:01:22]} h6 {[%emt 0:01:56]} 17. Qe2 {[%emt 0:06:37]} Kh8 {[%emt 0:01:43]} 18. h4 {[%emt 0:03:54]} Qe8 {[%emt 0:02:15]} 19. Rf2 {[%emt 0:02:32]} Qe7 {[%emt 0:02:52]} 20. a5 {[%emt 0:03:32]} b5 {[%emt 0:00:31]} 21. g3 {[%emt 0:00:49]} h5 {[%emt 0:00:21]} 22. Kh1 {[%emt 0:00:09]} g6 {[%emt 0:00:07]} 23. Kg1 {[%emt 0:00:04]} Kg8 {[%emt 0:00:01]} 24. Kh1 {[%emt 0:00:03]} Kh8 {[%emt 0:00:03]} 25. Kg1 {[%emt 0:00:02]} Kg8 {[%emt 0:00:03]} 26. Kh1 {[%emt 0:00:01]} Kh8 {[%emt 0:00:04]} 27. Kg1 {[%emt 0:00:07]} Kg8 {[%emt 0:00:03]} 1/2-1/2

[Event "Asian Zonal-ch 3.5 Women 2019"]
[Site "Zi Bo"]
[Date "2019.09.09"]
[Round "8.11"]
[White "Xue, Yue"]
[Black "Zhao, Shengxin"]
[Result "0-1"]
[ECO "B92"]
[WhiteElo "1678"]
[BlackElo "2162"]
[Annotator "ChessBase"]
[PlyCount "68"]
[EventDate "2019.09.05"]
[EventType "swiss"]
[EventCountry "CHN"]
[SourceTitle "playchess.com"]
[Source "ChessBase"]
[SourceQuality "1"]
[TimeControl "5400+30"]

1. e4 {[%emt 0:00:00]} c5 {[%emt 0:00:09]} 2. Nf3 {[%emt 0:00:04]} d6 {[%emt 0:00:17]} 3. d4 {[%emt 0:01:48]} cxd4 {[%emt 0:02:02]} 4. Nxd4 {[%emt 0:00:07]} Nf6 {[%emt 0:00:06]} 5. Nc3 {[%emt 0:00:05]} a6 {[%emt 0:00:03]} 6. Be2 {[%emt 0:02:08]} e5 {[%emt 0:00:42]} 7. Nb3 {[%emt 0:00:24]} Be7 {[%emt 0:00:13]} 8. Be3 {[%emt 0:00:24]} O-O {[%emt 0:00:19]} 9. O-O {[%emt 0:00:14]} Be6 {[%emt 0:01:24]} 10. f4 {[%emt 0:05:40]} b5 {[%emt 0:07:37]} 11. a3 {[%emt 0:01:24]} Nbd7 {[%emt 0:02:08]} 12. f5 {[%emt 0:12:07]} Bc4 {[%emt 0:00:59]} 13. Nd2 {[%emt 0:00:14]} Bxe2 {[%emt 0:05:05]} 14. Qxe2 {[%emt 0:00:32]} Nb6 {[%emt 0:01:26]} 15. Kh1 {[%emt 0:02:22]} Rc8 {[%emt 0:01:16]} 16. Rad1 {[%emt 0:10:54]} h6 {[%emt 0:07:20]} 17. Bxb6 {[%emt 0:06:52]} Qxb6 {[%emt 0:00:11]} 18. Nd5 {[%emt 0:00:22]} Nxd5 {[%emt 0:08:22]} 19. exd5 {[%emt 0:00:08]} Rxc2 {[%emt 0:01:18]} 20. f6 {[%emt 0:07:09]} Bxf6 {[%emt 0:01:57]} 21. Rxf6 {[%emt 0:00:02]} gxf6 {[%emt 0:00:09]} 22. Qg4+ {[%emt 0:00:02]} Kh8 {[%emt 0:00:07]} 23. Qf5 {[%emt 0:00:46]} Qc7 {[%emt 0:09:10]} 24. Qxf6+ {[%emt 0:01:53]} Kh7 {[%emt 0:01:14]} 25. Qf5+ {[%emt 0:02:52]} Kg7 {[%emt 0:07:18]} 26. Qg4+ {[%emt 0:02:07]} Kh8 {[%emt 0:05:00]} 27. Qh5 {[%emt 0:00:42]} f5 {[%emt 0:01:50]} 28. Qxh6+ {[%emt 0:00:19]} Kg8 {[%emt 0:00:06]} 29. Qg6+ {[%emt 0:00:19]} Qg7 {[%emt 0:00:04]} 30. Qxd6 {[%emt 0:00:24]} e4 {[%emt 0:00:35]} 31. Qxa6 {[%emt 0:03:11]} Qg4 {[%emt 0:02:39]} 32. Qe6+ {[%emt 0:01:19]} Rf7 {[%emt 0:00:12]} 33. Qe8+ {[%emt 0:00:21]} Kg7 {[%emt 0:00:15]} 34. Qe5+ {[%emt 0:00:10]} Kh7 {[%emt 0:00:11]} 0-1

[Event "Asian Zonal-ch 3.5 Women 2019"]
[Site "Zi Bo"]
[Date "2019.09.09"]
[Round "8.12"]
[White "Wang, Yuehan"]
[Black "Zhao, Caidi"]
[Result "1/2-1/2"]
[ECO "B90"]
[WhiteElo "1600"]
[BlackElo "1540"]
[Annotator "NA"]
[PlyCount "119"]
[EventDate "2019.09.05"]
[EventType "swiss"]
[EventCountry "CHN"]
[SourceTitle "playchess.com"]
[Source "ChessBase"]
[SourceQuality "1"]
[TimeControl "5400+30"]

1. e4 {[%emt 0:00:00]} c5 {[%emt 0:00:00]} 2. Nf3 {[%emt 0:00:00]} d6 {[%emt 0:00:00]} 3. d4 {[%emt 0:00:00]} cxd4 {[%emt 0:00:00]} 4. Nxd4 {[%emt 0:00:00]} Nf6 {[%emt 0:00:00]} 5. Nc3 {[%emt 0:00:00]} a6 {[%emt 0:00:00]} 6. f3 {[%emt 0:00:03]} e5 {[%emt 0:00:07]} 7. Nb3 {[%emt 0:00:04]} Be7 {[%emt 0:00:12]} 8. Be3 {[%emt 0:00:06]} Be6 {[%emt 0:00:19]} 9. Qd2 {[%emt 0:00:29]} O-O {[%emt 0:00:19]} 10. O-O-O {[%emt 0:01:39]} Nbd7 {[%emt 0:01:36]} 11. g4 {[%emt 0:00:15]} b5 {[%emt 0:00:23]} 12. Nd5 {[%emt 0:01:35]} Bxd5 {[%emt 0:01:47]} 13. exd5 {[%emt 0:00:07]} Nb6 {[%emt 0:01:02]} 14. Bxb6 {[%emt 0:02:08]} Qxb6 {[%emt 0:00:03]} 15. Qe2 {[%emt 0:12:27]} Rfe8 {[%emt 0:08:28]} 16. h4 {[%emt 0:01:32]} b4 {[%emt 0:01:08]} 17. Kb1 {[%emt 0:14:24]} a5 {[%emt 0:04:42]} 18. Nc1 {[%emt 0:02:46]} Qc5 {[%emt 0:05:20]} 19. Qb5 {[%emt 0:04:04]} Rec8 {[%emt 0:03:18]} 20. Qxc5 {[%emt 0:11:23]} Rxc5 {[%emt 0:02:09]} 21. Bd3 {[%emt 0:00:51]} Nd7 {[%emt 0:11:31]} 22. Nb3 {[%emt 0:00:29]} Rc7 {[%emt 0:01:14]} 23. Bb5 {[%emt 0:00:36]} Nb8 {[%emt 0:03:48]} 24. a4 {[%emt 0:02:41]} bxa3 {[%emt 0:06:53]} 25. bxa3 {[%emt 0:00:17]} Rc3 {[%emt 0:03:24]} 26. Rd3 {[%emt 0:05:52]} Rxd3 {[%emt 0:01:08]} 27. Bxd3 {[%emt 0:00:05]} Bd8 {[%emt 0:02:44]} 28. Bb5 {[%emt 0:00:27]} Na6 {[%emt 0:00:48]} 29. Bc6 {[%emt 0:00:27]} Rb8 {[%emt 0:00:39]} 30. Ka2 {[%emt 0:00:20]} g6 {[%emt 0:02:56]} 31. h5 {[%emt 0:01:46]} Kg7 {[%emt 0:02:00]} 32. hxg6 {[%emt 0:00:34]} hxg6 {[%emt 0:01:12]} 33. Kb2 {[%emt 0:01:53]} Nc5 {[%emt 0:05:38]} 34. Kc3 {[%emt 0:01:10]} Bb6 {[%emt 0:01:49]} 35. Nd2 {[%emt 0:00:32]} Bc7 {[%emt 0:01:56]} 36. Nc4 {[%emt 0:05:14]} Kg8 {[%emt 0:03:13]} 37. Kd2 {[%emt 0:03:30]} Kg7 {[%emt 0:00:58]} 38. Kc3 {[%emt 0:01:50]} Kg8 {[%emt 0:01:12]} 39. Nd2 {[%emt 0:04:10]} Kg7 {[%emt 0:00:29]} 40. Rh3 {[%emt 0:02:23]} Kg8 {[%emt 0:02:46]} 41. Rh2 {[%emt 0:00:08]} Kg7 {[%emt 0:00:08]} 42. Rh1 {[%emt 0:00:05]} Kg8 {[%emt 0:00:05]} 43. Rb1 {[%emt 0:03:48]} Rxb1 {[%emt 0:00:59]} 44. Nxb1 {[%emt 0:00:04]} f5 {[%emt 0:01:09]} 45. gxf5 {[%emt 0:02:23]} gxf5 {[%emt 0:00:01]} 46. Nd2 {[%emt 0:01:01]} Kf7 {[%emt 0:00:50]} 47. Kc4 {[%emt 0:01:19]} Kf6 {[%emt 0:02:52]} 48. Be8 {[%emt 0:00:56]} e4 {[%emt 0:01:53]} 49. fxe4 {[%emt 0:00:59]} fxe4 {[%emt 0:00:30]} 50. Kb5 {[%emt 0:05:41]} Ke5 {[%emt 0:02:51]} 51. Kc6 {[%emt 0:00:12]} Bb8 {[%emt 0:02:22]} 52. Bh5 {[%emt 0:00:41]} Kd4 {[%emt 0:01:53]} 53. Nb3+ {[%emt 0:02:18]} Nxb3 {[%emt 0:01:49]} 54. cxb3 {[%emt 0:00:02]} Ba7 {[%emt 0:00:24]} 55. Kxd6 {[%emt 0:00:12]} Bc5+ {[%emt 0:00:10]} 56. Kc6 {[%emt 0:01:25]} Bxa3 {[%emt 0:00:17]} 57. d6 {[%emt 0:04:50]} Bxd6 {[%emt 0:00:50]} 58. Kxd6 {[%emt 0:00:02]} Kc3 {[%emt 0:00:25]} 59. Ke5 {[%emt 0:00:25]} Kxb3 {[%emt 0:00:31]} 60. Kxe4 {[%emt 0:00:02]} 1/2-1/2